Cogmind - Beta 10.2 @@@ ROGUE MODE // 2021.10.17 @ 16:28:28 Player: DuckBoy Result: Destroyed by G-47 Trooper with Particle Gun Performance ------------- Evolutions (3) 1500 Regions Visited (11) 2200 Robots Destroyed (221) 1105 Value Destroyed (8503) 8503 Prototype IDs (27) 540 Alien Tech Used (0) 0 Bonus (4238) 4238 TOTAL SCORE: 18086 Bonus ------- Triggered High Security 500 High Alert Combat Kills 2389 Follower Combat Kills 390 Entered Garrisons 400 Used RIF Installer 1000 Aligned with FarCom 300 Friendly Fire -741 Cogmind --------- Core Integrity 0/700 Matter 255/300 Energy 29/100 System Corruption 9% Temperature Cool (9) Movement Core (450) Ox8 Location -7/Factory Parts ------- > --- POWER (1) -------- (None) > --- PROPULSION (2) --- Gravmag System Antigrav System > --- UTILITY (8) ------ Medium Storage Unit Improved Light Armor Plating Improved Light Armor Plating Improved Light Armor Plating Hacking Suite System Shield > --- WEAPON (2) ------- Assault Cannon Longsword +1 > --- INVENTORY (8) ---- Improved Light Armor Plating Improved Light Armor Plating Improved Light Armor Plating Improved Light Armor Plating Shock Rifle Gatling Laser Proton Missile Launcher Remote Datajack Peak State ------------ > --- POWER ------------ Light Nuclear Core > --- PROPULSION ------- Armored Treads Medium Treads > --- UTILITY ---------- High-capacity Storage Unit High-capacity Storage Unit Hacking Suite Hacking Suite Hacking Suite System Shield System Shield Relay Coupler [Hunter] > --- WEAPON ----------- Mini Assault Cannon Longsword +1 > --- INVENTORY -------- Armored Treads Advanced Treads Advanced Treads Medium Storage Unit Utility Shielding Utility Shielding Heavy Armor Plating Improved Light Armor Plating System Backup Module Arc Projector Advanced Beam Rifle Advanced Beam Rifle Gatling Laser Improved EM Pulse Cannon Ion Cannon Enhanced Autogun Assault Cannon Proton Missile Launcher Remote Datajack [Rating: 51] Favorites ----------- Power Light Nuclear Core Engine Ion Engine Power Core Light Nuclear Core Propulsion Light Treads Treads Light Treads Leg Aluminum Leg Wheel Wheel Hover Unit Antigrav System Utility High-capacity Storage Unit Device Improved Heat Sink Storage High-capacity Storage Unit Processor Improved Terrain Scan Processor Hackware Hacking Suite Protection Improved Utility Shielding Weapon Longsword +1 Energy Gun EM Pulse Gun Energy Cannon Improved EM Pulse Cannon Ballistic Gun Enhanced Autogun Ballistic Cannon Assault Cannon Launcher Grenade Launcher Special Weapon Remote Datajack Slashing Weapon Longsword +1 Special Melee Weapon Improved Datajack Build | -11 -10 -10 -10 -9 -8 -8 -8 -8 -7 -7 -7 ------- Run | Scr Mat Min Exi Min Mat Gar Mat Gar Fac Was Fac Slots Evolved 6 | . . . . . 4 . . . 2 . . Power . | . . . . . . . . . . . . Propulsion . | . . . . . . . . . . . . Utility 6 | . . . . . 4 . . . 2 . . Weapon . | . . . . . . . . . . . . Parts Attached 225 | 7 8 1 . 9 24 9 24 29 94 4 16 Power 15 | 1 1 . . 1 2 2 1 1 5 . 1 Engine 8 | 1 1 . . 1 . 2 . . 3 . . Core 7 | . . . . . 2 . 1 1 2 . 1 Reactor . | . . . . . . . . . . . . Propulsion 42 | 2 3 . . 4 3 1 5 2 17 1 4 Treads 30 | 2 1 . . 4 3 1 5 2 12 . . Leg 1 | . . . . . . . . . 1 . . Wheel 4 | . 2 . . . . . . . 2 . . Hover 7 | . . . . . . . . . 2 1 4 Flight . | . . . . . . . . . . . . Utility 70 | 2 2 . . . 8 2 6 9 31 2 8 Device 8 | 1 . . . . 1 . . . 4 1 1 Storage 6 | . 2 . . . 1 . . . 3 . . Processor 2 | 1 . . . . 1 . . . . . . Hackware 18 | . . . . . . . . 7 10 . 1 Protection 36 | . . . . . 5 2 6 2 14 1 6 Artifact . | . . . . . . . . . . . . Weapon 98 | 2 2 1 . 4 11 4 12 17 41 1 3 Energy Gun 18 | 2 . . . 3 2 . 3 1 6 . 1 Energy Cannon 7 | . . . . . 1 . 1 2 3 . . Ballistic Gun 19 | . 1 . . . 3 2 4 2 7 . . Ballistic Cannon 13 | . . . . . 1 1 . 2 8 . 1 Launcher 16 | . . 1 . 1 1 1 2 5 4 . 1 Special Weapon 5 | . 1 . . . . . . . 3 1 . Impact Weapon . | . . . . . . . . . . . . Slashing Weapon 17 | . . . . . 3 . 2 2 10 . . Piercing Weapon . | . . . . . . . . . . . . Special Melee Weapon 3 | . . . . . . . . 3 . . . Unidentified Prototypes 4 | . . . . . 3 . . . 1 . . Parts Lost 69 | . 2 . . 8 4 4 7 2 33 . 9 Power 10 | . . . . 1 . 1 1 1 5 . 1 Propulsion 13 | . . . . 3 1 . 1 . 6 . 2 Utility 28 | . 1 . . . 2 2 4 1 12 . 6 Weapon 18 | . 1 . . 4 1 1 1 . 10 . . Highest Loss Streak 8 | . 2 . . 8 2 2 4 2 8 . 4 Average Slot Usage (%) 95 | . 97 100 100 88 93 94 94 93 96 97 94 Engine 3 | . 14 14 14 5 . 7 6 . 1 . . Core 4 | . . . . . 8 1 2 6 4 7 6 Treads 15 | . 27 . . 20 17 18 17 18 14 . . Wheel 1 | . . 28 28 6 . . . . . . . Hover 1 | . . . . . . . . . . 15 14 Device 2 | . 9 . . . 4 . . . 3 7 4 Storage 20 | . 5 28 28 28 19 27 27 27 18 7 7 Processor 1 | . 11 . . . 6 . . . . . . Hackware 11 | . . . . . . . . 4 23 38 36 Protection 14 | . . . . . 18 24 22 19 13 6 8 Energy Gun 4 | . 19 . . 10 8 1 4 1 1 . . Energy Cannon 1 | . . . . . 1 . 2 1 1 . . Ballistic Gun 3 | . 4 14 14 3 1 10 8 . 1 . . Ballistic Cannon 2 | . . . . . . . . 5 3 . . Launcher 2 | . . 9 14 12 4 3 . . 1 . 1 Slashing Weapon 1 | . . . . . . . 2 1 2 7 7 Special Melee Weapon 1 | . . . . . . . . 6 . . . Naked Turns . | . . . . . . . . . . . . Heaviest Build 103 | 10 71 74 74 74 95 97 103 96 98 23 33 Greatest Support 48 | 40 40 20 20 40 40 40 40 40 48 32 27 Greatest Overweight (x) 26 | 2 3 3 3 7 4 2 2 2 26 . 2 Average Overweight (x) 1 | . . 3 3 1 1 2 2 1 1 . . Largest Inventory Capacity 24 | 4 20 20 20 20 24 24 24 24 24 8 8 Average Capacity 19 | 4 6 20 20 20 20 24 24 24 21 8 8 Most Carried 24 | 1 14 15 17 17 24 24 24 24 24 8 8 Average Carried 18 | . 4 14 15 12 19 23 23 23 19 7 6 Final Capacity 24 | 4 20 20 20 20 24 24 24 24 8 8 8 Final Carried 24 | 1 14 15 17 15 24 24 23 24 8 8 8 Class Distribution -------------------- 55% | Hauler-Mutant 18% | Hacker-Mutant 10% | Scavenger-Mutant 8% | Bothacker-Mutant 7% | Mutant Dominant Class ---------------- Mutant | -10/Materials Hauler-Mutant | -10/Mines Hauler-Mutant | -10/Exiles Hauler-Mutant | -9/Mines Hauler-Mutant | -8/Materials Hauler-Mutant | -8/Garrison Hauler-Mutant | -8/Materials Hauler-Mutant | -8/Garrison Hauler-Mutant | -7/Factory Hacker-Mutant | -7/Waste Hacker-Mutant | -7/Factory Resources | -11 -10 -10 -10 -9 -8 -8 -8 -8 -7 -7 -7 ----------- Run | Scr Mat Min Exi Min Mat Gar Mat Gar Fac Was Fac Matter Collected 4529 | 270 67 . . 197 400 444 743 396 1818 . 194 Remotely . | . . . . . . . . . . . . Salvage Created 7632 | 89 530 . . 68 1326 466 1494 199 2599 . 861 Parts 448 | 5 41 . . 8 73 46 83 14 130 . 48 Haulers Intercepted 2 | . 1 . . . 1 . . . . . . Recyclers Shooed 1 | . . . . . 1 . . . . . . Parts Field Recycled . | . . . . . . . . . . . . Retrieved Matter . | . . . . . . . . . . . . Parts Self-Destructed . | . . . . . . . . . . . . Prevented . | . . . . . . . . . . . . Kills | -11 -10 -10 -10 -9 -8 -8 -8 -8 -7 -7 -7 ------- Run | Scr Mat Min Exi Min Mat Gar Mat Gar Fac Was Fac Combat Hostiles Destroyed 181 | . 13 . . 15 25 24 31 7 56 . 10 Melee 19 | . . . . . 2 . 1 1 9 . 6 Guns 60 | . 13 . . 2 9 8 19 . 9 . . Cannons 37 | . . . . . 10 2 4 4 17 . . AOE 65 | . . . . 13 4 14 7 2 21 . 4 Classes Destroyed 17 | 2 5 . . 2 4 . 1 . 3 . . Worker 10 | . 1 . . . 2 . 1 . 2 . 4 Builder 7 | . . . . . 1 . . . 3 . 3 Tunneler 3 | 1 . . . 1 . . . . . . 1 Hauler 2 | . 1 . . . 1 . . . . . . Recycler 4 | 1 1 . . . 1 . 1 . . . . Mechanic 1 | . . . . . . . . . 1 . . Operator 9 | . . . . . 4 . 2 . 3 . . Watcher 12 | . 3 . . . 3 . 2 . 1 . 3 Swarmer 59 | . 9 . . 4 7 17 8 3 11 . . Grunt 63 | . 4 . . . 11 5 13 1 25 . 4 Brawler 7 | . . . . . . . 2 . 4 . 1 Duelist 4 | . . . . . . . . . 4 . . Sentry 23 | . . . . . 6 2 6 3 4 . 2 Demolisher 1 | . . . . 1 . . . . . . . Hunter 5 | . . . . . 1 . 2 . 1 . 1 Programmer 11 | . . . . . . . . . 9 . 2 Assembled 10 | . . . . 10 . . . . . . . Best Kill Streak 10 | 2 7 . . 8 5 4 6 3 9 . 10 Combat Bots Only 8 | . 3 . . 7 4 4 6 3 8 . 3 Max Kills in Single Turn 6 | 1 2 . . 4 3 3 2 1 3 . 6 Gunslinging 1 | . 1 . . . . . 1 . . . . Exploded 4 | . . . . 4 2 3 2 1 3 . 2 Melee 1 | . . . . . 1 . 1 1 1 . 1 Uniques/NPCs Destroyed . | . . . . . . . . . . . . Combat | -11 -10 -10 -10 -9 -8 -8 -8 -8 -7 -7 -7 -------- Run | Scr Mat Min Exi Min Mat Gar Mat Gar Fac Was Fac Damage Taken 11578 | . 413 . . 931 1140 798 1657 379 5254 . 1006 Core 1364 | . 46 . . 160 133 45 226 48 593 . 113 Absorbed by Shields 180 | . . . . . 180 . . . . . . Core Remaining (%) 44 | 100 . . . 17 . . . 17 . . . Volleys Fired 482 | 5 44 . . 26 88 47 87 25 148 . 12 Largest 2 | 2 2 . . 2 2 2 2 2 2 . 1 Hottest 130 | 80 100 . . 80 89 73 122 92 130 . 50 Shots Fired 739 | 10 79 . . 32 106 77 162 27 234 . 12 Gun 452 | 10 75 . . 20 53 53 144 2 91 . 4 Cannon 211 | . . . . . 46 11 10 19 124 . 1 Launcher 69 | . . . . 12 7 13 8 6 16 . 7 Special 7 | . 4 . . . . . . . 3 . . Kinetic 377 | . 2 . . 3 26 54 123 12 156 . 1 Thermal 67 | . 4 . . 9 6 . 21 . 27 . . Explosive 49 | . . . . 12 7 13 8 6 3 . . Electromagnetic 243 | 10 73 . . 8 67 10 10 9 45 . 11 Robot Hit Streak 23 | 3 12 . . 6 15 18 16 6 23 . 6 Robot Miss Streak 7 | 3 6 . . 2 5 7 2 3 5 . 3 Penetration Max 1 | . . . . . . 1 . . 1 . . Secondary Targets 8 | . 2 . . . . . 3 . 3 . . Max Gunslinging Chain 1 | . 1 . . . . . 1 . 1 . . Shots Hit Robots 599 | 4 45 . . 16 81 45 129 28 203 . 48 Core Hits 413 | 3 20 . . 42 60 37 65 12 134 . 40 Critical Hits 4 | . . . . . 1 1 . . 2 . . Critical Kills 2 | . . . . . 1 . . . 1 . . Critical Parts Destroyed 2 | . . . . . . 1 . . 1 . . Melee Attacks 133 | . . . . . 6 . 8 20 48 . 51 Impact . | . . . . . . . . . . . . Slashing 117 | . . . . . 6 . 8 6 46 . 51 Piercing . | . . . . . . . . . . . . Sneak Attacks 12 | . . . . . 1 . 2 1 6 . 2 Combat Hostiles 2 | . . . . . . . . 1 . . 1 Follow-up Attacks . | . . . . . . . . . . . . Damage Inflicted 20116 | 65 724 . . 1002 2418 1396 2848 636 7934 . 3093 Guns 5589 | 65 653 . . 159 814 696 1733 . 1449 . 20 Cannons 3714 | . . . . . 761 120 200 275 2358 . . Explosions 5920 | . 71 . . 843 528 580 514 187 2153 . 1044 Melee 4857 | . . . . . 315 . 392 174 1947 . 2029 Ramming 36 | . . . . . . . 9 . 27 . . Kinetic 5187 | . 17 . . 23 360 654 1393 152 2588 . . Thermal 2181 | . 71 . . 132 231 . 340 . 1407 . . Explosive 2879 | . . . . 792 350 580 514 187 456 . . Electromagnetic 4976 | 65 636 . . 55 1162 162 200 123 1509 . 1064 Impact . | . . . . . . . . . . . . Slashing 4857 | . . . . . 315 . 392 174 1947 . 2029 Piercing . | . . . . . . . . . . . . Highest Corruption 9 | . 1 1 1 1 . . 1 1 7 7 9 Average Corruption 2 | . 1 1 1 1 . . 1 1 4 7 4 Corruption Purged 9 | . . . . . . . . . 1 . 8 Effects 100 | . 3 . 2 4 . . . 5 68 2 16 Message Errors 30 | . 2 . 2 . . . . 5 15 . 6 Matter Fused 17 | . . . . . . . . . 14 1 2 Heat Flow Errors 9 | . . . . . . . . . 8 . 1 Energy Discharges 9 | . . . . 1 . . . . 6 . 2 Data Loss (minor) 18 | . 1 . . 2 . . . . 10 1 4 Data Loss (major) 3 | . . . . . . . . . 3 . . Misfires 3 | . . . . . . . . . 3 . . Targeting Errors 9 | . . . . 1 . . . . 7 . 1 Weapon Failures 2 | . . . . . . . . . 2 . . Overload Shots . | . . . . . . . . . . . . Overflow Damage 1286 | . 13 . . 23 211 . 13 . 812 . 214 Projectiles 37 | . . . . . 7 . . . 30 . . Explosions 243 | . 13 . . 23 19 . 13 . 160 . 15 Melee 1006 | . . . . . 185 . . . 622 . 199 Knockbacks 27 | . . . . . 5 2 . 2 18 . . Impact 1 | . . . . . . . . . 1 . . Kinetic 24 | . . . . . 4 2 . 2 16 . . Secondary 2 | . . . . . 1 . . . 1 . . Self-Inflicted Damage 505 | . 35 . . 49 63 58 . . 286 . 14 Shots 15 | . 1 . . 1 2 4 . . 6 . 1 Rammed 3 | . . . . . . . 1 . 2 . . Targets Rammed 4 | . . . . . 1 . 1 . 2 . . Kicked . | . . . . . . . . . . . . Crushed 1 | . . . . . 1 . . . . . . Highest Temperature 530 | 56 138 . . 20 471 530 266 118 502 . 250 Average Temperature 97 | 23 40 . . 5 97 162 88 48 115 . 66 Received Heat Transfer 3108 | . 54 . . . 450 306 558 144 1302 . 294 Effects 25 | . . . . . 1 16 1 . 7 . . Shutdowns 4 | . . . . . 1 3 . . . . . Energy Bleed 4 | . . . . . . 2 1 . 1 . . Interference 4 | . . . . . . 2 . . 2 . . Matter Decay 5 | . . . . . . 3 . . 2 . . Short Circuit 1 | . . . . . . . . . 1 . . Damage (minor) 3 | . . . . . . 2 . . 1 . . Damage (major) 4 | . . . . . . 4 . . . . . Siege Activations . | . . . . . . . . . . . . Robots Corrupted 2 | . 1 . . . 1 . . . . . . Combat Hostiles . | . . . . . . . . . . . . Parts Fried 24 | 1 5 . . . 5 2 . . 8 . 3 Impact Corruptions . | . . . . . . . . . . . . Robots Melted . | . . . . . . . . . . . . Combat Hostiles . | . . . . . . . . . . . . Parts Melted 2 | . . . . . . . 2 . . . . Heat Transferred 2884 | . 100 . . 225 312 . 629 . 1618 . . Parts Sabotaged . | . . . . . . . . . . . . Parts Stolen . | . . . . . . . . . . . . Parts Stripped . | . . . . . . . . . . . . Power Chain Reactions 9 | . 1 . . 1 2 . . . 4 . 1 Missiles Intercepted . | . . . . . . . . . . . . Alert | -11 -10 -10 -10 -9 -8 -8 -8 -8 -7 -7 -7 ------- Run | Scr Mat Min Exi Min Mat Gar Mat Gar Fac Was Fac Peak Influence 1665 | 10 192 . . 95 429 1194 1212 734 1665 1130 1180 Initial 1100 | . 6 . . . . 220 581 454 385 1100 791 Average 642 | 5 74 . . 39 199 779 811 603 888 1120 891 Maximum Alert Level 5 | . . . . . 2 4 4 3 5 4 4 Low Security (%) 19 | 100 100 100 . 100 47 . . . 1 . . Level 1 10 | . . . . . 48 25 . . 10 . . Level 2 29 | . . . . . 4 15 32 90 28 . 4 Level 3 24 | . . . . . . 27 50 9 31 . 75 Level 4 14 | . . . . . . 31 16 . 24 100 19 Level 5 . | . . . . . . . . . . . . High Security 1 | . . . . . . . . . 3 . . Max Security . | . . . . . . . . . . . . Squads Dispatched 49 | . 1 . . . 3 . 8 . 29 . 8 Investigation 6 | . 1 . . . . . 3 . 1 . 1 Extermination 9 | . . . . . . . . . 7 . 2 Reinforcement 8 | . . . . . 2 . 2 . 3 . 1 Assault 15 | . . . . . . . . . 14 . 1 Garrison 11 | . . . . . 1 . 3 . 4 . 3 Intercept . | . . . . . . . . . . . . Construction Impeded 1 | . . . . . . . . . 1 . . Haulers Reinforced . | . . . . . . . . . . . . Stealth | -11 -10 -10 -10 -9 -8 -8 -8 -8 -7 -7 -7 --------- Run | Scr Mat Min Exi Min Mat Gar Mat Gar Fac Was Fac Distress Signals 10 | . . . . . 2 . 7 . . . 1 Communications Jammed . | . . . . . . . . . . . . Distress Signals . | . . . . . . . . . . . . Times Spotted 308 | . 16 . . 21 41 23 48 21 102 5 31 Peak Tracking Total 8 | . 3 . . 8 4 4 6 3 8 5 6 Tactical Retreats 22 | . . . . 1 1 3 4 2 3 1 7 Traps | -11 -10 -10 -10 -9 -8 -8 -8 -8 -7 -7 -7 ------- Run | Scr Mat Min Exi Min Mat Gar Mat Gar Fac Was Fac Traps Triggered 20 | . 2 . . . . 3 3 7 3 . 2 Indirectly . | . . . . . . . . . . . . Trap Hack Attempts 5 | . . . . . . . . 5 . . . Triggered . | . . . . . . . . . . . . Disarmed 2 | . . . . . . . . 1 . . 1 Reprogrammed 1 | . . . . . . . . 1 . . . Reused . | . . . . . . . . . . . . Traps Extracted . | . . . . . . . . . . . . Installed . | . . . . . . . . . . . . Triggered . | . . . . . . . . . . . . Machines | -11 -10 -10 -10 -9 -8 -8 -8 -8 -7 -7 -7 ---------- Run | Scr Mat Min Exi Min Mat Gar Mat Gar Fac Was Fac Machines Disabled 66 | . 2 . . . 1 3 3 3 37 . 17 Max in Single Turn 6 | . 1 . . . 1 1 1 1 6 . 6 Garrison Access 1 | . . . . . . . . . 1 . . Garrison Relay 6 | . . . . . . 3 . 3 . . . Machines Sabotaged . | . . . . . . . . . . . . Garrisons Compromised . | . . . . . . . . . . . . Overloaded Fab Kills . | . . . . . . . . . . . . Fab Network Shutdowns . | . . . . . . . . . . . . Hacking | -11 -10 -10 -10 -9 -8 -8 -8 -8 -7 -7 -7 --------- Run | Scr Mat Min Exi Min Mat Gar Mat Gar Fac Was Fac Machines Accessed 50 | . 7 . 2 . 7 . 7 . 17 . 10 Terminals 32 | . 6 . . . 6 . 6 . 9 . 5 Fabricators 2 | . . . . . . . . . . . 2 Repair Stations 2 | . . . . . . . . . 1 . 1 Recycling Units 5 | . 1 . . . . . . . 4 . . Scanalyzers 1 | . . . . . . . . . . . 1 Garrison Access 6 | . . . . . 1 . 1 . 3 . 1 Total Hacks 113 | . 12 . 2 . 14 . 20 . 33 . 32 Successful 65 | . 5 . 2 . 7 . 13 . 20 . 18 Failed 48 | . 7 . . . 7 . 7 . 13 . 14 Catastrophic 13 | . 4 . . . 4 . 1 . 1 . 3 Database Lockouts . | . . . . . . . . . . . . Manual 83 | . 13 . 1 . 12 . 17 . 26 . 14 Terminals 76 | . 9 . . . 13 . 18 . 21 . 15 Fabricators 3 | . . . . . . . . . . . 3 Repair Stations 6 | . . . . . . . . . 2 . 4 Recycling Units 8 | . 3 . . . . . . . 5 . . Scanalyzers 7 | . . . . . . . . . . . 7 Garrison Access 11 | . . . . . 1 . 2 . 5 . 3 Terminal Hacks 23 | . 2 . 2 . 3 . 7 . 4 . 5 Record 2 | . 1 . 1 . . . . . . . . Part Schematic 3 | . . . . . 2 . . . . . 1 Robot Schematic 1 | . 1 . . . . . . . . . . Robot Analysis 1 | . . . . . . . . . 1 . . Terminal Index 2 | . . . . . . . 1 . 1 . . Garrison Index 1 | . . . . . . . 1 . . . . Unreport Threat 7 | . . . . . 1 . 3 . 2 . 1 Disarm Traps 1 | . . . . . . . . . . . 1 Dispatch Records 1 | . . . . . . . 1 . . . . Patrol Status 1 | . . . . . . . 1 . . . . Recall Reinforcements 1 | . . . . . . . . . . . 1 Recall Assault 1 | . . . . . . . . . . . 1 EX-Prototype ID Bank 1 | . . . 1 . . . . . . . . Fabricator Hacks 2 | . . . . . . . . . . . 2 Load Schematic 1 | . . . . . . . . . . . 1 Build 1 | . . . . . . . . . . . 1 Repair Station Hacks 4 | . . . . . . . . . 2 . 2 Scan Component 2 | . . . . . . . . . 1 . 1 Repair 2 | . . . . . . . . . 1 . 1 Recycling Unit Hacks . | . . . . . . . . . . . . Scanalyzer 5 | . . . . . . . . . . . 5 Insert Component 2 | . . . . . . . . . . . 2 Analyze 3 | . . . . . . . . . . . 3 Garrison Access Hacks 2 | . . . . . 1 . 1 . . . . Unlock Access 2 | . . . . . 1 . 1 . . . . Unauthorized Hacks 29 | . 3 . . . 3 . 5 . 14 . 4 Terminals 14 | . 1 . . . 3 . 5 . 4 . 1 Assimilate 2 | . . . . . 1 . . . 1 . . Botnet 6 | . . . . . 1 . 2 . 2 . 1 Operators 6 | . 1 . . . 1 . 3 . 1 . . Fabricators 1 | . . . . . . . . . . . 1 Report 1 | . . . . . . . . . . . 1 Repair Stations . | . . . . . . . . . . . . Recycling Units 7 | . 2 . . . . . . . 5 . . Reject 2 | . 1 . . . . . . . 1 . . Mask 5 | . 1 . . . . . . . 4 . . Scanalyzers . | . . . . . . . . . . . . Garrison Access 7 | . . . . . . . . . 5 . 2 Reprogram 7 | . . . . . . . . . 5 . 2 Data Cores Recovered 1 | . . . . . . . . . 1 . . Used . | . . . . . . . . . . . . Hacking Detections 42 | . 7 . . . 5 . 6 . 14 . 10 Full Trace Events 2 | . . . . . . . 1 . . . 1 Feedback Events . | . . . . . . . . . . . . Feedback Blocked . | . . . . . . . . . . . . Robot Schematics Acquired 1 | . 1 . . . . . . . . . . Robots Built . | . . . . . . . . . . . . Matter . | . . . . . . . . . . . . Time . | . . . . . . . . . . . . Total Robot Build Rating . | . . . . . . . . . . . . Part Schematics Acquired 5 | . . . . . 2 . . . . . 3 Parts Built 1 | . . . . . . . . . . . 1 Matter 146 | . . . . . . . . . . . 146 Time 36 | . . . . . . . . . . . 36 Total Part Build Rating 3 | . . . . . . . . . . . 3 Parts Repaired 2 | . . . . . . . . . 1 . 1 Time 44 | . . . . . . . . . 26 . 18 Parts Recycled . | . . . . . . . . . . . . Recycled Matter . | . . . . . . . . . . . . Retrieved Matter . | . . . . . . . . . . . . Retrieved Components . | . . . . . . . . . . . . Parts Scanalyzed 2 | . . . . . . . . . . . 2 Part Schematics Acquired 2 | . . . . . . . . . . . 2 Parts Damaged . | . . . . . . . . . . . . Bothacking | -11 -10 -10 -10 -9 -8 -8 -8 -8 -7 -7 -7 ------------ Run | Scr Mat Min Exi Min Mat Gar Mat Gar Fac Was Fac Used RIF Installer 2 | . . . . . . 1 . 1 . . . Coupler Efficiency 1 | . . . . . . . . 1 . . . Robots Hacked 16 | . . . . . . . . 13 3 . . Non-combat . | . . . . . . . . . . . . Combat 16 | . . . . . . . . 13 3 . . Robot Hacks Applied 17 | . . . . . . . . 13 4 . . streamctrl_high 6 | . . . . . . . . 5 1 . . formatsys_high 11 | . . . . . . . . 8 3 . . Relay Couplers Released 33 | . . . . . . 14 . 13 6 . . Machine Destruction 29 | . . . . . . 14 . 13 2 . . Programmers 4 | . . . . . . . . . 4 . . Attached 11 | . . . . . . . . 7 4 . . Robots Rewired . | . . . . . . . . . . . . Allies Hacked . | . . . . . . . . . . . . Hacks Repelled . | . . . . . . . . . . . . Allies | -11 -10 -10 -10 -9 -8 -8 -8 -8 -7 -7 -7 -------- Run | Scr Mat Min Exi Min Mat Gar Mat Gar Fac Was Fac Total Allies 24 | . . . . . 1 . . 13 9 . 1 Largest Group 5 | . . . . . 1 . . 5 4 . 1 Highest-Rated Group 102 | . . . . . 10 . . 79 102 . 16 Highest-Rated Ally 55 | . . . . . 10 . . 16 55 . 16 Total Orders 1 | . . . . . . . . 1 . . . FOLLOW 1 | . . . . . . . . 1 . . . Ally Attacks 98 | . . . . . . . . 53 36 . 9 Total Damage 1875 | . . . . . . . . 759 1054 . 62 Kills 17 | . . . . . . . . 6 11 . . Allies Corrupted . | . . . . . . . . . . . . Allies Melted . | . . . . . . . . . . . . Intel | -11 -10 -10 -10 -9 -8 -8 -8 -8 -7 -7 -7 ------- Run | Scr Mat Min Exi Min Mat Gar Mat Gar Fac Was Fac Robot Analysis Total 1 | . . . . . . . . . 1 . . Derelict Logs Recovered 1 | . . . . 1 . . . . . . . Drone Launches . | . . . . . . . . . . . . Drone Recoveries . | . . . . . . . . . . . . Exploration | -11 -10 -10 -10 -9 -8 -8 -8 -8 -7 -7 -7 ------------- Run | Scr Mat Min Exi Min Mat Gar Mat Gar Fac Was Fac Turns Passed 16005 | 82 1285 118 339 576 1790 1230 1597 2383 5370 91 1144 Spaces Moved 7921 | 35 695 92 307 321 713 525 602 1003 2385 145 1098 Core 9 | 8 . . . . . . . . 1 . . Treads 5924 | 27 661 . . 211 713 525 602 1003 2182 . . Legs . | . . . . . . . . . . . . Wheels 569 | . 34 92 307 110 . . . . 26 . . Hover 1419 | . . . . . . . . . 176 145 1098 Flight . | . . . . . . . . . . . . Fastest Speed 50 | 50 110 110 110 110 180 200 200 180 56 56 56 Average Speed 165 | 149 160 110 110 157 196 200 200 199 188 56 72 Slowest Speed 1350 | 160 180 110 110 220 240 200 200 200 1350 56 180 Overloaded Moves . | . . . . . . . . . . . . Propulsion Burnouts . | . . . . . . . . . . . . Robots Hopped . | . . . . . . . . . . . . Cave-ins Triggered . | . . . . . . . . . . . . Exploration Rate (%) 56 | 3 94 23 71 81 42 62 51 78 53 80 34 Regions Visited 11 Branch Regions 3 Pre-discovered Areas 2 | . . 1 1 . . . . . . . . Known Exits Taken 2 | . . . . . 1 . 1 . . . . Unknown Exits Taken 5 | 1 1 1 1 1 . . . . . . . Scrap Searched 1 | . . . . 1 . . . . . . . Spaces Dug 72 | . 4 . . . 18 17 2 . 22 . 9 Terrain Destroyed 507 | . 7 . . 96 56 55 56 21 207 . 9 Melee 29 | . . . . . . . 2 . 18 . 9 Projectile 19 | . 4 . . . 2 2 . . 11 . . AOE 459 | . 3 . . 96 54 53 54 21 178 . . Terrain Rammed . | . . . . . . . . . . . . Walls Destroyed . | . . . . . . . . . . . . Machines Disabled . | . . . . . . . . . . . . Actions | -11 -10 -10 -10 -9 -8 -8 -8 -8 -7 -7 -7 --------- Run | Scr Mat Min Exi Min Mat Gar Mat Gar Fac Was Fac Total 9931 | 51 778 108 308 360 992 638 841 1345 2981 154 1375 Wait 927 | 4 15 15 . . 114 39 104 223 236 2 175 Move 7909 | 34 694 91 306 320 712 523 601 1001 2385 144 1098 Hop . | . . . . . . . . . . . . Pick Up 103 | 1 14 1 2 5 20 7 7 10 30 2 4 Fast Attach 57 | 7 2 . . 1 9 2 3 4 21 1 7 Attach 59 | . 1 . . 7 6 2 7 3 28 2 3 Detach 11 | . . . . . 4 . . 3 3 . 1 Swap 109 | . 5 1 . 1 9 5 14 22 45 1 6 Drop 77 | . 3 . . . 12 7 9 8 31 2 5 Fire 482 | 5 44 . . 26 88 47 87 25 148 . 12 Melee 133 | . . . . . 6 . 8 20 48 . 51 Ram . | . . . . . . . . . . . . Kick . | . . . . . . . . . . . . Crush 4 | . . . . . 1 . 1 . 2 . . Escape Stasis 35 | . . . . . . 6 . 14 2 . 13 Rewire 20 | . . . . . 11 . . 7 2 . . Trap 5 | . . . . . . . . 5 . . . Miscellaneous . | . . . . . . . . . . . . Route ------- -11/Scrapyard -10/Materials (discovered 4 exits: [*Mat x3] / [*Min]) -10/Mines -10/Exiles -9/Mines -8/Materials (discovered 3 exits: *Fac / Sto / Gar) -8/Garrison (discovered 3 exits: *Mat x3) -8/Materials (discovered 3 exits: *Fac / *Sto / Gar) -8/Garrison (discovered 3 exits: *Fac x3) -7/Factory (discovered 3 exits: [*Fac x2] / [*Low]) -7/Waste -7/Factory (discovered 2 exits: [*Fac] / [*Low]) History --------- Turn | Location | Event 21 | -11/Scrapyard | Discovered new exit (range 15) 83 | -11/Scrapyard | Entered Materials 172 | -10/Materials | Discovered new exit (range 13) 312 | -10/Materials | Build established: Mutant 576 | -10/Materials | Discovered new exit (range 6) 698 | -10/Materials | Discovered new exit (range 3) 800 | -10/Materials | Discovered new exit (range 12) 1368 | -10/Materials | Entered Mines 1369 | -10/Mines | Learned location of Storage (-8) 1397 | -10/Mines | Received a Rocket Launcher from a helpful Derelict 1440 | -10/Mines | Build established: Hauler-Mutant 1481 | -10/Mines | Deemed a non-threat by the Exiles lab entrance 1482 | -10/Mines | Discovered new exit (range 5) 1486 | -10/Mines | Entered Exiles 1514 | -10/Exiles | Met 8R-AWN 1530 | -10/Exiles | Met EX-HEX 1591 | -10/Exiles | Met EX-DEC 1618 | -10/Exiles | Learned location of Zion (-6) 1648 | -10/Exiles | Met EX-BIN 1661 | -10/Exiles | Aligned with FarCom system 1662 | -10/Exiles | Given EX-Vault access code 1689 | -10/Exiles | Opened EX-Vault 1699 | -10/Exiles | Found Longsword +1 1723 | -10/Exiles | Warned to stay clear of 0b10 Research branches 1735 | -10/Exiles | Exiles lab attacked by MAIN.C 1813 | -10/Exiles | Discovered new exit (range 14) 1825 | -10/Exiles | Left Exiles lab with Longsword +1 1825 | -10/Exiles | Entered Mines 1849 | -9/Mines | Met a Derelict bent on vengeance 1914 | -9/Mines | Assembled infested the area 1923 | -9/Mines | Found a hidden stash of uninstalled traps 1955 | -9/Mines | Destroyed 7 combat bots 1975 | -9/Mines | Core integrity fell below 50% 2038 | -9/Mines | Lost 8 parts (1p3n4w) 2039 | -9/Mines | Core integrity fell below 20% 2141 | -9/Mines | Learned location of 1 exit from Materials 2383 | -9/Mines | Discovered new exit (range 11) 2401 | -9/Mines | Entered Materials 2401 | -8/Materials | Evolved 4 slots: Utility x4 2402 | -8/Materials | Identified exit to Storage 3579 | -8/Materials | Discovered new exit (range 15) 4143 | -8/Materials | Garrison activated, responded to threat 4189 | -8/Materials | Identified exit to Garrison 4191 | -8/Materials | Entered Garrison 4236 | -8/Garrison | Triggered checkpoint 4363 | -8/Garrison | Garrison Relay disabled 4454 | -8/Garrison | Triggered checkpoint 4484 | -8/Garrison | Triggered checkpoint 4618 | -8/Garrison | Discovered new exit (range 12) 4718 | -8/Garrison | Triggered checkpoint 4741 | -8/Garrison | Garrison Relay disabled 4863 | -8/Garrison | Triggered checkpoint 4865 | -8/Garrison | Triggered checkpoint 4947 | -8/Garrison | Discovered new exit (range 12) 4990 | -8/Garrison | Build established: Scavenger-Mutant 5082 | -8/Garrison | Triggered checkpoint 5105 | -8/Garrison | Garrison Relay disabled 5369 | -8/Garrison | Discovered new exit (range 12) 5403 | -8/Garrison | Installed Relay Interface Framework 5421 | -8/Garrison | Entered Materials 5817 | -8/Materials | Build established: Hauler-Mutant 6054 | -8/Materials | Discovered new exit (range 10) 6380 | -8/Materials | Garrison activated, responded to threat 6446 | -8/Materials | Core integrity fell below 50% 6466 | -8/Materials | Discovered exit to Storage (range 8) 6596 | -8/Materials | Lost 4 parts (1n2u1w) 6970 | -8/Materials | Build established: Bothacker-Mutant 7016 | -8/Materials | Identified exit to Garrison 7018 | -8/Materials | Entered Garrison 7234 | -8/Garrison | Triggered checkpoint 7328 | -8/Garrison | Garrison Relay disabled 7821 | -8/Garrison | Triggered checkpoint 7984 | -8/Garrison | Core integrity fell below 20% 8014 | -8/Garrison | Triggered checkpoint 8196 | -8/Garrison | Triggered checkpoint 8196 | -8/Garrison | Build established: Hauler-Mutant 8211 | -8/Garrison | Garrison Relay disabled 8348 | -8/Garrison | Triggered checkpoint 8514 | -8/Garrison | Discovered new exit (range 15) 8658 | -8/Garrison | Triggered checkpoint 8793 | -8/Garrison | Discovered new exit (range 8) 9160 | -8/Garrison | Triggered checkpoint 9181 | -8/Garrison | Garrison Relay disabled 9286 | -8/Garrison | Triggered checkpoint 9293 | -8/Garrison | Discovered new exit (range 15) 9335 | -8/Garrison | Expanded RIF knowledge: Coupler Efficiency 9401 | -8/Garrison | Entered Factory 9401 | -7/Factory | Evolved 2 slots: Utility x2 9876 | -7/Factory | Discovered new exit (range 5) 10201 | -7/Factory | First assault squad dispatched 10271 | -7/Factory | Discovered new exit (range 12) 11519 | -7/Factory | Lost 3 parts (2n1w) 11629 | -7/Factory | Lost 8 parts (1p4u3w) 11890 | -7/Factory | Build established: Scavenger-Mutant 12003 | -7/Factory | Lost 4 parts (1p1n2u) 12098 | -7/Factory | Core integrity fell below 50% 12126 | -7/Factory | Lost 4 parts (1p2n1w) 12240 | -7/Factory | Repaired Hcp. Storage Unit? 12836 | -7/Factory | Lost 4 parts (2u2w) 12848 | -7/Factory | Destroyed 8 combat bots 13495 | -7/Factory | Discovered new exit (range 16) 13665 | -7/Factory | Build established: Hacker-Mutant 14569 | -7/Factory | High security lockdown imminent 14649 | -7/Factory | High security lockdown engaged 14692 | -7/Factory | Core integrity fell below 20% 14771 | -7/Factory | Sucked down chute 14771 | -7/Factory | Entered Waste 14792 | -7/Waste | Spotted C-40 Crusher 14793 | -7/Waste | Spotted C-40 Crusher 14808 | -7/Waste | Spotted C-40 Crusher 14824 | -7/Waste | Spotted C-40 Crusher 14830 | -7/Waste | Spotted C-40 Crusher 14843 | -7/Waste | Spotted C-40 Crusher 14849 | -7/Waste | Discovered new exit (range 16) 14862 | -7/Waste | Entered Factory 14929 | -7/Factory | Discovered new exit (range 13) 15140 | -7/Factory | Discovered new exit (range 4) 15245 | -7/Factory | Garrison activated, responded to threat 15262 | -7/Factory | First assault squad dispatched 15387 | -7/Factory | Repaired Antigrav System 15761 | -7/Factory | Lost 4 parts (2n2u) 15881 | -7/Factory | Fabricated Hacking Suite (x1) 16006 | -7/Factory | Destroyed by G-47 Trooper with Particle Gun Last Messages --------------- 15919_ Acquired Imp. Light Armor Plating. 15929_ K-01 Serf cleans the Fusion Modulator. 15946_ ALERT: Rogue bot located, Programmers report to Factory Zone 3I. 15946_ Connecting with Terminal... 15954_ HWIJAR7CMKZ9LO6EAIKC6RCKBQG 15971_ C-30 ARC bursts open, deploying its payload. 15971_ B-48 Gladiator unfolds itself. 15971_ G-47 Trooper unfolds itself. 15973_ G-47 Trooper destroyed. 15974_ G-47 Trooper misfires. 15976_ System corrupted: Proton Missile Launcher targeting data glitched. 15976_ Destroyed Particle Gun. 15976_ Mic. Nuclear Core destroyed. 15996_ Hacking Suite destroyed. 15996_ System corrupted by crushing effect (+3). 15997_ P-60 Hacker resets G-47 Trooper, system corruption cleaned. 15997_ B-48 Gladiator Rnf. Deuterium Engine severed. 15999_ System corrupted: Component data lost. 16001_ System Shield destroyed. 16001_ System corrupted by crushing effect (+1). Map ----- +----------------------------------------------------+ | | | | | | | | | | | | | | | ???????????????????????????????????????#?????????? | | ???????????????????????????# ?????????? #????????? | | ???????????????????????????# ??????? #????????? | | ???????????????????????????# ???"""? #????????? | | ???????????????????????????# """""" #????????? | | ???????????????????????????# """""" #????????? | | ???????????????????????????# """""" #????????? | | ???????????????????????????# #????????? | | ???????????????????????????? #????????? | | ???????????????????????????# """ #????????? | | ???????????????????????????? "Y #????????? | | ??????????????????????????????"" ??????????? | | ???????????????????????????????? ????????????? | | ??????????????????????????????####+#########?????? | | ??????????????????????????????# #?????? | | ??????????????????????????????# #?????? | | ??????????????????????????????# #????# | | ????????????????############### #????# | | ????????? @ #????# | | ????????? gb############# #????# | | ????????? p #???????????# #????# | | ?????????? #???????????# #????# | | ?????????? #???????????# #????# | | ??????????? #???????????# ###??# | | ??????????? #???????????+ T#??# | | ???????????####### #???????????# ""#?# | | ?????????????????# #?####??????# ####### | | ?????????????????# #### | | ?????????????????# | | ?????????????????# ! g | | ?????????????????# =% """ """ """ """ """ | | ?????????????????# =% ? ??""" """ """ """ """ | | ???????????????????? ??????"" """ """ """ """ | | ?????????????????????? ?? | | ???????????????????????????????"" """ """ """ """ | | ????????????????????????????????? """ """ """ """ | | ??????????????????????????????????""" """ """ """ | | ?????????????????????????????? | | ??????????????????????????????????""" """ """ | | ??????????????????????????????????""" """ """ | | ???????????????????????????????"" """ """ """ !!! | | ?????????????????????????????? | | ?????????????????????????????? | +----------------------------------------------------+ Best States ------------- Heat Dissipation 62 Energy Generation 18 Energy Capacity 290 Matter Stores 300 Matter Capacity 300 Sight Range 16 Terrain Scan Range 16 Terrain Scan Density 110 Armor Coverage 750 Resistance: TH 10 Resistance: EM 15 Core Shielding 20 Utility Shielding 66 Melee Speed Boost 20 Evasion (%) 53 Recoil Reduction 2 Offensive Hacking 30 Defensive Hacking 20 Relay Coupler Types 31 Relay Coupler Value 1 Item Schematics ----------------- Hacking Suite | -8/Materials | Hacked System Shield | -8/Materials | Hacked Adv. Cooling System | -7/Factory | Hacked Cmb. Gravmag System | -7/Factory | Scanalyzed Hyp. Gauss Cannon | -7/Factory | Scanalyzed Robot Schematics ------------------ O-16 Technician | -10/Materials | Hacked Fabricated ------------ Hacking Suite | x1 | -7/Factory Alien Tech Used ----------------- None Achievements -------------- Hehehe Challenges ------------ None Game ------ Seed TerrainVariableCorpse Manual? 0 Play Time 02:22:01 Cumulative 96.0 hours Start 2021.10.17 @ 13:54:38 End 2021.10.17 @ 16:28:28 Sessions 1 Manual Loads 0 Difficulty Rogue Special Mode None Game No. 74 Rogue 71 Adventurer 3 Explorer 0 Win Type - Total 1 Types 1/0/0/0/0/0/0/0/0 Lore% 48 Gallery% 51 Achievement% 43 Wizard Run 0 Options --------- ASCII 0 Keyboard 0 Movement Numpad Keybinds 0 Fullscreen 1 Font 18/SmallcapsGlow Map View 76x50 Tactical HUD 1 Map Filters NONE Filters NONE Steam 1 RUN: daa28d50-ae78-4b19-ae54-bef45acf8711